[Event "Titled Tuesday Blitz March 22 Early 2022"]
[White "Skliarov, Viktor"]
[Black "Svane, Rasmus"]
[WhiteFideId "14106736"]
[BlackFideId "4657101"]
[WhiteElo "2229"]
[BlackElo "2645"]
[Result "0-1"]
[Round "02"]
[TimeControl "180+1"]
[Date "2022.03.22"]
[WhiteClock "0:00:06"]
[BlackClock "0:00:11"]

1. e4 {[%clk 0:03:00]}  c6 {[%clk 0:02:59]} 2. d4 {[%clk 0:03:00]}  d5 {[%clk 0:02:59]} 3. e5 {[%clk 0:02:59]}  Bf5 {[%clk 0:02:58]} 4. Nf3 {[%clk 0:02:59]}  e6 {[%clk 0:02:58]} 5. Be2 {[%clk 0:03:00]}  Ne7 {[%clk 0:02:59]} 6. O-O {[%clk 0:03:00]}  Ng6 {[%clk 0:02:57]} 7. Ne1 {[%clk 0:02:56]}  h5 {[%clk 0:02:55]} 8. Nd3 {[%clk 0:02:53]}  Nd7 {[%clk 0:02:52]} 9. Be3 {[%clk 0:02:51]}  Qb6 {[%clk 0:02:48]} 10. Nc3 {[%clk 0:02:44]}  h4 {[%clk 0:02:38]} 11. h3 {[%clk 0:02:40]}  Be7 {[%clk 0:02:35]} 12. Bg4 {[%clk 0:02:23]}  Ngf8 {[%clk 0:02:05]} 13. a4 {[%clk 0:01:40]}  a5 {[%clk 0:01:55]} 14. b3 {[%clk 0:01:23]}  Qa6 {[%clk 0:01:30]} 15. Rc1 {[%clk 0:00:55]}  Rc8 {[%clk 0:01:23]} 16. Na2 {[%clk 0:00:47]}  Bxd3 {[%clk 0:01:10]} 17. cxd3 {[%clk 0:00:46]}  g6 {[%clk 0:01:06]} 18. f4 {[%clk 0:00:32]}  Qb6 {[%clk 0:01:03]} 19. Rf2 {[%clk 0:00:27]}  Nb8 {[%clk 0:00:56]} 20. Rfc2 {[%clk 0:00:26]}  Na6 {[%clk 0:00:54]} 21. Kf2 {[%clk 0:00:26]}  Nd7 {[%clk 0:00:51]} 22. Rb1 {[%clk 0:00:17]}  Qa7 {[%clk 0:00:51]} 23. Qd2 {[%clk 0:00:16]}  Bd8 {[%clk 0:00:47]} 24. Qe1 {[%clk 0:00:16]}  Bb6 {[%clk 0:00:45]} 25. Qc3 {[%clk 0:00:15]}  O-O {[%clk 0:00:46]} 26. Be2 {[%clk 0:00:13]}  c5 {[%clk 0:00:46]} 27. Qb2 {[%clk 0:00:12]}  cxd4 {[%clk 0:00:41]} 28. Bd2 {[%clk 0:00:12]}  Rc6 {[%clk 0:00:25]} 29. Rbc1 {[%clk 0:00:11]}  Rfc8 {[%clk 0:00:25]} 30. Kf1 {[%clk 0:00:10]}  Qb8 {[%clk 0:00:19]} 31. Be1 {[%clk 0:00:10]}  Bd8 {[%clk 0:00:18]} 32. Bf2 {[%clk 0:00:08]}  Be7 {[%clk 0:00:17]} 33. Bxd4 {[%clk 0:00:08]}  Nb4 {[%clk 0:00:11]} 34. Nxb4 {[%clk 0:00:07]}  Bxb4 {[%clk 0:00:12]} 35. Qb1 {[%clk 0:00:07]}  Bc5 {[%clk 0:00:11]} 36. Bxc5 {[%clk 0:00:07]}  Nxc5 {[%clk 0:00:12]} 37. Qb2 {[%clk 0:00:04]}  Na6 {[%clk 0:00:13]} 38. Rxc6 {[%clk 0:00:04]}  Rxc6 {[%clk 0:00:13]} 39. Rxc6 {[%clk 0:00:05]}  bxc6 {[%clk 0:00:14]} 40. d4 {[%clk 0:00:05]}  Nb4 {[%clk 0:00:13]} 41. Qc3 {[%clk 0:00:06]}  Kg7 {[%clk 0:00:12]} 42. Qc5 {[%clk 0:00:05]}  Qd8 {[%clk 0:00:12]} 43. Bf3 {[%clk 0:00:05]}  g5 {[%clk 0:00:12]} 44. Kf2 {[%clk 0:00:05]}  gxf4 {[%clk 0:00:12]} 45. Qc1 {[%clk 0:00:05]}  Qg5 {[%clk 0:00:12]} 46. Qc3 {[%clk 0:00:05]}  Qg3+ {[%clk 0:00:12]} 47. Kf1 {[%clk 0:00:05]}  Kg8 {[%clk 0:00:12]} 48. Qc5 {[%clk 0:00:06]}  Nd3 {[%clk 0:00:10]} 49. Qc2 {[%clk 0:00:06]}  Qe1# {[%clk 0:00:11]} 0-1


[Site "https://www.chess.com"]

[Event "Titled Tuesday Blitz March 22 Early 2022"]
[White "Stepanencu, Nicodim-Cosmin"]
[Black "Kozak, Adam"]
[WhiteFideId "1256220"]
[BlackFideId "753246"]
[WhiteElo "1913"]
[BlackElo "2459"]
[Result "1-0"]
[Round "02"]
[TimeControl "180+1"]
[Date "2022.03.22"]
[WhiteClock "0:00:10"]
[BlackClock "0:00:45"]

1. b3 {[%clk 0:03:00]}  Nf6 {[%clk 0:02:56]} 2. Bb2 {[%clk 0:03:01]}  g6 {[%clk 0:02:57]} 3. Nf3 {[%clk 0:03:00]}  Bg7 {[%clk 0:02:57]} 4. g3 {[%clk 0:03:00]}  O-O {[%clk 0:02:58]} 5. Bg2 {[%clk 0:03:00]}  d5 {[%clk 0:02:58]} 6. O-O {[%clk 0:02:55]}  c5 {[%clk 0:02:58]} 7. c4 {[%clk 0:02:51]}  d4 {[%clk 0:02:58]} 8. e3 {[%clk 0:02:50]}  Nc6 {[%clk 0:02:58]} 9. exd4 {[%clk 0:02:50]}  cxd4 {[%clk 0:02:59]} 10. Na3 {[%clk 0:02:49]}  e5 {[%clk 0:02:58]} 11. d3 {[%clk 0:02:41]}  Re8 {[%clk 0:02:55]} 12. Re1 {[%clk 0:02:39]}  Bg4 {[%clk 0:02:47]} 13. h3 {[%clk 0:02:39]}  Bf5 {[%clk 0:02:47]} 14. g4 {[%clk 0:02:25]}  Nxg4 {[%clk 0:02:43]} 15. hxg4 {[%clk 0:02:24]}  Bxg4 {[%clk 0:02:44]} 16. Qd2 {[%clk 0:02:19]}  h5 {[%clk 0:02:34]} 17. Nh2 {[%clk 0:02:11]}  Qh4 {[%clk 0:02:32]} 18. Nb5 {[%clk 0:02:04]}  e4 {[%clk 0:02:26]} 19. dxe4 {[%clk 0:01:39]}  Rac8 {[%clk 0:02:19]} 20. Nxg4 {[%clk 0:01:09]}  hxg4 {[%clk 0:02:18]} 21. Nd6 {[%clk 0:01:08]}  Be5 {[%clk 0:02:16]} 22. Nxc8 {[%clk 0:01:07]}  Rxc8 {[%clk 0:02:16]} 23. Rad1 {[%clk 0:00:50]}  Kg7 {[%clk 0:02:14]} 24. b4 {[%clk 0:00:50]}  Qh2+ {[%clk 0:01:33]} 25. Kf1 {[%clk 0:00:48]}  g3 {[%clk 0:01:33]} 26. f4 {[%clk 0:00:42]}  Bf6 {[%clk 0:01:25]} 27. b5 {[%clk 0:00:34]}  Nd8 {[%clk 0:01:14]} 28. Bxd4 {[%clk 0:00:33]}  Ne6 {[%clk 0:01:15]} 29. Bxf6+ {[%clk 0:00:31]}  Kxf6 {[%clk 0:01:16]} 30. Qc3+ {[%clk 0:00:23]}  Ke7 {[%clk 0:01:14]} 31. f5 {[%clk 0:00:22]}  Ng5 {[%clk 0:00:54]} 32. Qe5+ {[%clk 0:00:18]}  Kf8 {[%clk 0:00:54]} 33. Rd7 {[%clk 0:00:11]}  Nf3 {[%clk 0:00:46]} 34. Qe7+ {[%clk 0:00:10]}  Kg7 {[%clk 0:00:45]} 35. Qxf7+ {[%clk 0:00:09]}  Kh8 {[%clk 0:00:45]} 36. Qg7# {[%clk 0:00:10]} 1-0


[Site "https://www.chess.com"]

[Event "Titled Tuesday Blitz March 22 Early 2022"]
[White "Suarez Uriel, Adrian"]
[Black "Kobalia, Mikhail"]
[WhiteFideId "22230874"]
[BlackFideId "4119150"]
[WhiteElo "2316"]
[BlackElo "2667"]
[Result "0-1"]
[Round "02"]
[TimeControl "180+1"]
[Date "2022.03.22"]
[WhiteClock "0:00:14"]
[BlackClock "0:00:15"]

1. e4 {[%clk 0:03:00]}  c5 {[%clk 0:02:56]} 2. Ne2 {[%clk 0:03:01]}  e6 {[%clk 0:02:56]} 3. d4 {[%clk 0:03:00]}  cxd4 {[%clk 0:02:56]} 4. Nxd4 {[%clk 0:03:01]}  Nc6 {[%clk 0:02:56]} 5. Nc3 {[%clk 0:03:01]}  a6 {[%clk 0:02:57]} 6. Nxc6 {[%clk 0:03:01]}  bxc6 {[%clk 0:02:56]} 7. Bd3 {[%clk 0:02:58]}  d5 {[%clk 0:02:56]} 8. O-O {[%clk 0:02:59]}  Nf6 {[%clk 0:02:56]} 9. Re1 {[%clk 0:03:00]}  Be7 {[%clk 0:02:57]} 10. b3 {[%clk 0:02:55]}  O-O {[%clk 0:02:56]} 11. Bb2 {[%clk 0:02:55]}  a5 {[%clk 0:02:53]} 12. Na4 {[%clk 0:02:55]}  Ba6 {[%clk 0:02:50]} 13. e5 {[%clk 0:02:54]}  Nd7 {[%clk 0:02:49]} 14. c4 {[%clk 0:02:49]}  Nb6 {[%clk 0:02:49]} 15. Nxb6 {[%clk 0:02:42]}  Qxb6 {[%clk 0:02:50]} 16. Qh5 {[%clk 0:02:30]}  g6 {[%clk 0:02:49]} 17. Qg4 {[%clk 0:02:27]}  a4 {[%clk 0:02:40]} 18. Bd4 {[%clk 0:02:15]}  c5 {[%clk 0:02:22]} 19. Be3 {[%clk 0:02:06]}  axb3 {[%clk 0:02:21]} 20. axb3 {[%clk 0:02:02]}  Qxb3 {[%clk 0:02:20]} 21. Rad1 {[%clk 0:01:51]}  Bxc4 {[%clk 0:02:19]} 22. Bxc4 {[%clk 0:01:51]}  Qxc4 {[%clk 0:02:19]} 23. Qxc4 {[%clk 0:01:51]}  dxc4 {[%clk 0:02:19]} 24. Rd7 {[%clk 0:01:52]}  Rfe8 {[%clk 0:02:18]} 25. Rc1 {[%clk 0:01:51]}  Ra4 {[%clk 0:02:17]} 26. Rc7 {[%clk 0:01:51]}  Bf8 {[%clk 0:02:04]} 27. Bxc5 {[%clk 0:01:50]}  Bxc5 {[%clk 0:02:04]} 28. Rxc5 {[%clk 0:01:49]}  Rd8 {[%clk 0:02:04]} 29. h4 {[%clk 0:01:38]}  Rd4 {[%clk 0:02:03]} 30. g3 {[%clk 0:01:38]}  Kg7 {[%clk 0:02:01]} 31. Rc2 {[%clk 0:01:36]}  h6 {[%clk 0:02:01]} 32. Kg2 {[%clk 0:01:33]}  g5 {[%clk 0:02:01]} 33. hxg5 {[%clk 0:01:32]}  hxg5 {[%clk 0:02:00]} 34. Kf3 {[%clk 0:01:32]}  Kg6 {[%clk 0:01:46]} 35. Ke3 {[%clk 0:01:29]}  Rd5 {[%clk 0:01:46]} 36. R5xc4 {[%clk 0:01:21]}  Rxe5+ {[%clk 0:01:45]} 37. Kf3 {[%clk 0:01:21]}  Ra3+ {[%clk 0:01:44]} 38. R4c3 {[%clk 0:01:21]}  Ra1 {[%clk 0:01:39]} 39. Kg2 {[%clk 0:01:21]}  g4 {[%clk 0:01:38]} 40. Rc1 {[%clk 0:01:20]}  Rxc1 {[%clk 0:01:34]} 41. Rxc1 {[%clk 0:01:19]}  Re2 {[%clk 0:01:34]} 42. Rc4 {[%clk 0:01:18]}  f5 {[%clk 0:01:32]} 43. Kf1 {[%clk 0:01:16]}  Ra2 {[%clk 0:01:32]} 44. Rc5 {[%clk 0:01:16]}  Kf6 {[%clk 0:01:31]} 45. Rb5 {[%clk 0:01:16]}  Ke7 {[%clk 0:01:31]} 46. Rb7+ {[%clk 0:01:15]}  Kd6 {[%clk 0:01:31]} 47. Rb6+ {[%clk 0:01:16]}  Kd5 {[%clk 0:01:31]} 48. Rb5+ {[%clk 0:01:15]}  Ke4 {[%clk 0:01:31]} 49. Rb4+ {[%clk 0:01:15]}  Ke5 {[%clk 0:01:29]} 50. Rb5+ {[%clk 0:01:15]}  Kf6 {[%clk 0:01:29]} 51. Rb6 {[%clk 0:01:15]}  Rc2 {[%clk 0:01:29]} 52. Ra6 {[%clk 0:01:14]}  Ke5 {[%clk 0:01:28]} 53. Rb6 {[%clk 0:01:11]}  Kd5 {[%clk 0:01:27]} 54. Ra6 {[%clk 0:01:11]}  e5 {[%clk 0:01:26]} 55. Ra5+ {[%clk 0:01:08]}  Kd4 {[%clk 0:01:26]} 56. Ra4+ {[%clk 0:01:07]}  Rc4 {[%clk 0:01:23]} 57. Ra5 {[%clk 0:01:04]}  Ke4 {[%clk 0:01:23]} 58. Kg2 {[%clk 0:01:01]}  Rd4 {[%clk 0:01:23]} 59. Rb5 {[%clk 0:01:00]}  Rd5 {[%clk 0:01:19]} 60. Rb4+ {[%clk 0:01:00]}  Kd3 {[%clk 0:01:19]} 61. Rb3+ {[%clk 0:01:00]}  Ke2 {[%clk 0:01:19]} 62. Rb2+ {[%clk 0:01:00]}  Kd3 {[%clk 0:01:12]} 63. Rb3+ {[%clk 0:01:00]}  Ke4 {[%clk 0:01:13]} 64. Rb4+ {[%clk 0:01:00]}  Rd4 {[%clk 0:01:13]} 65. Rb5 {[%clk 0:01:01]}  Ra4 {[%clk 0:01:12]} 66. Rb3 {[%clk 0:00:59]}  Kd4 {[%clk 0:01:05]} 67. Kf1 {[%clk 0:00:53]}  Kc4 {[%clk 0:00:57]} 68. Rb8 {[%clk 0:00:50]}  Kd3 {[%clk 0:00:52]} 69. Rb3+ {[%clk 0:00:49]}  Ke4 {[%clk 0:00:50]} 70. Re3+ {[%clk 0:00:49]}  Kd4 {[%clk 0:00:50]} 71. Rb3 {[%clk 0:00:49]}  f4 {[%clk 0:00:48]} 72. gxf4 {[%clk 0:00:47]}  exf4 {[%clk 0:00:49]} 73. Kg2 {[%clk 0:00:44]}  Ra1 {[%clk 0:00:48]} 74. Rb4+ {[%clk 0:00:44]}  Ke5 {[%clk 0:00:48]} 75. Rb5+ {[%clk 0:00:44]}  Ke4 {[%clk 0:00:49]} 76. Rb4+ {[%clk 0:00:44]}  Kf5 {[%clk 0:00:49]} 77. Rb5+ {[%clk 0:00:44]}  Kf6 {[%clk 0:00:49]} 78. Rc5 {[%clk 0:00:44]}  Ra2 {[%clk 0:00:42]} 79. Kf1 {[%clk 0:00:43]}  f3 {[%clk 0:00:40]} 80. Kg1 {[%clk 0:00:39]}  Kg6 {[%clk 0:00:39]} 81. Rb5 {[%clk 0:00:38]}  Re2 {[%clk 0:00:35]} 82. Rc5 {[%clk 0:00:38]}  Kf6 {[%clk 0:00:35]} 83. Rb5 {[%clk 0:00:36]}  Re5 {[%clk 0:00:35]} 84. Rb8 {[%clk 0:00:23]}  Kf5 {[%clk 0:00:30]} 85. Rf8+ {[%clk 0:00:22]}  Ke4 {[%clk 0:00:30]} 86. Kh2 {[%clk 0:00:21]}  Kd3 {[%clk 0:00:26]} 87. Kg3 {[%clk 0:00:21]}  Ke2 {[%clk 0:00:25]} 88. Kxg4 {[%clk 0:00:19]}  Re7 {[%clk 0:00:16]} 89. Rxf3 {[%clk 0:00:19]}  Rg7+ {[%clk 0:00:16]} 90. Kf4 {[%clk 0:00:14]}  Rf7+ {[%clk 0:00:15]} 91. Ke4 {[%clk 0:00:14]}  Rxf3 {[%clk 0:00:15]} 0-1


[Site "https://www.chess.com"]

[Event "Titled Tuesday Blitz March 22 Early 2022"]
[White "Svidler, Peter"]
[Black "Ciolacu, Alessia-Mihaela"]
[WhiteFideId "4102142"]
[BlackFideId "1252640"]
[WhiteElo "2725"]
[BlackElo "1777"]
[Result "1/2-1/2"]
[Round "02"]
[TimeControl "180+1"]
[Date "2022.03.22"]
[WhiteClock "0:00:13"]
[BlackClock "0:00:36"]

1. e4 {[%clk 0:03:00]}  e5 {[%clk 0:02:59]} 2. Nf3 {[%clk 0:02:56]}  Nc6 {[%clk 0:02:59]} 3. Bb5 {[%clk 0:02:54]}  Nf6 {[%clk 0:02:56]} 4. d4 {[%clk 0:02:52]}  exd4 {[%clk 0:02:33]} 5. e5 {[%clk 0:02:51]}  Ne4 {[%clk 0:02:30]} 6. O-O {[%clk 0:02:49]}  Be7 {[%clk 0:02:27]} 7. b4 {[%clk 0:02:41]}  d5 {[%clk 0:02:16]} 8. Nxd4 {[%clk 0:02:37]}  Bd7 {[%clk 0:02:14]} 9. Bxc6 {[%clk 0:02:37]}  bxc6 {[%clk 0:02:15]} 10. f3 {[%clk 0:02:33]}  Ng5 {[%clk 0:02:14]} 11. Bxg5 {[%clk 0:02:23]}  Bxg5 {[%clk 0:02:15]} 12. f4 {[%clk 0:02:24]}  Be7 {[%clk 0:02:14]} 13. f5 {[%clk 0:02:17]}  O-O {[%clk 0:02:02]} 14. Qh5 {[%clk 0:01:25]}  c5 {[%clk 0:01:07]} 15. bxc5 {[%clk 0:01:24]}  Bxc5 {[%clk 0:01:07]} 16. c3 {[%clk 0:01:23]}  g6 {[%clk 0:01:07]} 17. Qh6 {[%clk 0:00:51]}  Re8 {[%clk 0:01:02]} 18. fxg6 {[%clk 0:00:35]}  fxg6 {[%clk 0:00:58]} 19. Rf7 {[%clk 0:00:24]}  Kxf7 {[%clk 0:00:49]} 20. Qxh7+ {[%clk 0:00:25]}  Kf8 {[%clk 0:00:49]} 21. Nd2 {[%clk 0:00:19]}  Bxd4+ {[%clk 0:00:48]} 22. cxd4 {[%clk 0:00:18]}  Bf5 {[%clk 0:00:49]} 23. Rf1 {[%clk 0:00:15]}  Qg5 {[%clk 0:00:46]} 24. Nf3 {[%clk 0:00:15]}  Qh5 {[%clk 0:00:35]} 25. Qxh5 {[%clk 0:00:13]}  g5 {[%clk 0:00:36]} 1/2-1/2


[Site "https://www.chess.com"]

[Event "Titled Tuesday Blitz March 22 Early 2022"]
[White "Tomb, Maroun"]
[Black "Johnson, Ben"]
[WhiteFideId "5300398"]
[BlackFideId "2010917"]
[WhiteElo "2495"]
[BlackElo "2206"]
[Result "1/2-1/2"]
[Round "02"]
[TimeControl "180+1"]
[Date "2022.03.22"]
[WhiteClock "0:00:23"]
[BlackClock "0:00:05"]

1. e4 {[%clk 0:03:00]}  c5 {[%clk 0:02:58]} 2. Ne2 {[%clk 0:03:00]}  Nc6 {[%clk 0:02:58]} 3. Nbc3 {[%clk 0:03:00]}  g6 {[%clk 0:02:55]} 4. d4 {[%clk 0:03:00]}  cxd4 {[%clk 0:02:54]} 5. Nxd4 {[%clk 0:03:01]}  Bg7 {[%clk 0:02:53]} 6. Nde2 {[%clk 0:03:01]}  Nf6 {[%clk 0:02:48]} 7. g3 {[%clk 0:03:01]}  d6 {[%clk 0:02:39]} 8. Bg2 {[%clk 0:03:01]}  O-O {[%clk 0:02:38]} 9. O-O {[%clk 0:03:02]}  a6 {[%clk 0:02:36]} 10. a4 {[%clk 0:03:02]}  Rb8 {[%clk 0:02:33]} 11. Nd5 {[%clk 0:03:02]}  Nxd5 {[%clk 0:02:25]} 12. exd5 {[%clk 0:02:59]}  Ne5 {[%clk 0:02:26]} 13. Nd4 {[%clk 0:02:55]}  a5 {[%clk 0:02:04]} 14. h3 {[%clk 0:02:53]}  Qc7 {[%clk 0:01:53]} 15. Ra2 {[%clk 0:02:48]}  Bd7 {[%clk 0:01:44]} 16. b3 {[%clk 0:02:47]}  Be8 {[%clk 0:01:16]} 17. c4 {[%clk 0:02:45]}  Nd7 {[%clk 0:01:15]} 18. Re2 {[%clk 0:02:35]}  Nc5 {[%clk 0:01:14]} 19. Bb2 {[%clk 0:02:31]}  Rd8 {[%clk 0:00:57]} 20. Rfe1 {[%clk 0:02:31]}  Rd7 {[%clk 0:00:55]} 21. h4 {[%clk 0:02:31]}  Bf6 {[%clk 0:00:51]} 22. Bh3 {[%clk 0:02:28]}  Rd8 {[%clk 0:00:50]} 23. h5 {[%clk 0:02:28]}  Bd7 {[%clk 0:00:48]} 24. Bg2 {[%clk 0:02:20]}  Bg4 {[%clk 0:00:47]} 25. f3 {[%clk 0:02:20]}  Bc8 {[%clk 0:00:35]} 26. Qd2 {[%clk 0:02:16]}  Qb6 {[%clk 0:00:32]} 27. Qe3 {[%clk 0:02:07]}  Rfe8 {[%clk 0:00:26]} 28. Kh2 {[%clk 0:02:04]}  Nd7 {[%clk 0:00:23]} 29. Nb5 {[%clk 0:01:59]}  Qxe3 {[%clk 0:00:22]} 30. Rxe3 {[%clk 0:01:57]}  Bxb2 {[%clk 0:00:21]} 31. Nxd6 {[%clk 0:01:57]}  Rf8 {[%clk 0:00:17]} 32. Rxe7 {[%clk 0:01:55]}  Nc5 {[%clk 0:00:16]} 33. Rc7 {[%clk 0:01:42]}  Bf6 {[%clk 0:00:13]} 34. Nxf7 {[%clk 0:01:23]}  Rxf7 {[%clk 0:00:13]} 35. Rxc5 {[%clk 0:01:23]}  gxh5 {[%clk 0:00:11]} 36. Rxa5 {[%clk 0:01:17]}  h4 {[%clk 0:00:11]} 37. Rb5 {[%clk 0:01:13]}  hxg3+ {[%clk 0:00:10]} 38. Kxg3 {[%clk 0:01:14]}  Rg7+ {[%clk 0:00:09]} 39. Kh2 {[%clk 0:01:14]}  Bh4 {[%clk 0:00:08]} 40. Re4 {[%clk 0:01:05]}  Bg3+ {[%clk 0:00:09]} 41. Kg1 {[%clk 0:01:02]}  Bf5 {[%clk 0:00:09]} 42. Re2 {[%clk 0:00:59]}  Bf4 {[%clk 0:00:09]} 43. Kh1 {[%clk 0:00:45]}  Bd3 {[%clk 0:00:10]} 44. Re6 {[%clk 0:00:44]}  Rf8 {[%clk 0:00:09]} 45. Bh3 {[%clk 0:00:42]}  Bf5 {[%clk 0:00:08]} 46. Bxf5 {[%clk 0:00:33]}  Rxf5 {[%clk 0:00:09]} 47. Re8+ {[%clk 0:00:33]}  Rf8 {[%clk 0:00:09]} 48. Rxf8+ {[%clk 0:00:33]}  Kxf8 {[%clk 0:00:10]} 49. a5 {[%clk 0:00:31]}  Ke8 {[%clk 0:00:10]} 50. Rb6 {[%clk 0:00:30]}  Kd8 {[%clk 0:00:10]} 51. a6 {[%clk 0:00:30]}  bxa6 {[%clk 0:00:09]} 52. Rxa6 {[%clk 0:00:31]}  Rb7 {[%clk 0:00:09]} 53. Rf6 {[%clk 0:00:28]}  Be5 {[%clk 0:00:08]} 54. Rf8+ {[%clk 0:00:27]}  Ke7 {[%clk 0:00:08]} 55. Rf5 {[%clk 0:00:25]}  Kd6 {[%clk 0:00:07]} 56. Rh5 {[%clk 0:00:24]}  Rxb3 {[%clk 0:00:07]} 57. Rxh7 {[%clk 0:00:25]}  Rxf3 {[%clk 0:00:07]} 58. Rh4 {[%clk 0:00:25]}  Kc5 {[%clk 0:00:06]} 59. Kg2 {[%clk 0:00:24]}  Rc3 {[%clk 0:00:05]} 60. Re4 {[%clk 0:00:24]}  Bd6 {[%clk 0:00:04]} 61. Kf2 {[%clk 0:00:24]}  Rxc4 {[%clk 0:00:05]} 62. Rxc4+ {[%clk 0:00:23]}  Kxc4 {[%clk 0:00:05]} 63. Ke2 {[%clk 0:00:23]}  Kxd5 {[%clk 0:00:05]} 1/2-1/2


[Site "https://www.chess.com"]

[Event "Titled Tuesday Blitz March 22 Early 2022"]
[White "Topalov, Aleksandar"]
[Black "Akobian, Varuzhan"]
[WhiteFideId "925659"]
[BlackFideId "13300580"]
[WhiteElo "2158"]
[BlackElo "2634"]
[Result "0-1"]
[Round "02"]
[TimeControl "180+1"]
[Date "2022.03.22"]
[WhiteClock "0:00:02"]
[BlackClock "0:01:29"]

1. b3 {[%clk 0:02:46]}  d5 {[%clk 0:02:59]} 2. Bb2 {[%clk 0:02:45]}  Bg4 {[%clk 0:02:58]} 3. f3 {[%clk 0:02:43]}  Bf5 {[%clk 0:02:54]} 4. d4 {[%clk 0:02:41]}  e6 {[%clk 0:02:52]} 5. e3 {[%clk 0:02:40]}  h6 {[%clk 0:02:50]} 6. Bd3 {[%clk 0:02:40]}  Bxd3 {[%clk 0:02:44]} 7. cxd3 {[%clk 0:02:40]}  Nf6 {[%clk 0:02:41]} 8. f4 {[%clk 0:02:40]}  c5 {[%clk 0:02:40]} 9. Nf3 {[%clk 0:02:40]}  Nc6 {[%clk 0:02:40]} 10. O-O {[%clk 0:02:23]}  cxd4 {[%clk 0:02:36]} 11. Nxd4 {[%clk 0:02:23]}  Bc5 {[%clk 0:02:36]} 12. Nc2 {[%clk 0:02:11]}  Qb6 {[%clk 0:02:34]} 13. d4 {[%clk 0:02:06]}  Be7 {[%clk 0:02:33]} 14. Nd2 {[%clk 0:02:02]}  O-O {[%clk 0:02:31]} 15. Nf3 {[%clk 0:01:42]}  Ne4 {[%clk 0:02:29]} 16. Nd2 {[%clk 0:01:32]}  Nf6 {[%clk 0:02:22]} 17. Qe2 {[%clk 0:01:08]}  Rac8 {[%clk 0:02:19]} 18. Rfc1 {[%clk 0:01:08]}  Rc7 {[%clk 0:02:16]} 19. Ne1 {[%clk 0:00:51]}  Rfc8 {[%clk 0:02:15]} 20. Nd3 {[%clk 0:00:52]}  Nb4 {[%clk 0:02:15]} 21. Nxb4 {[%clk 0:00:50]}  Bxb4 {[%clk 0:02:14]} 22. Nf3 {[%clk 0:00:36]}  Ne4 {[%clk 0:02:12]} 23. Rxc7 {[%clk 0:00:27]}  Qxc7 {[%clk 0:02:08]} 24. Ne1 {[%clk 0:00:18]}  Bxe1 {[%clk 0:02:02]} 25. Qxe1 {[%clk 0:00:18]}  b6 {[%clk 0:01:50]} 26. Rc1 {[%clk 0:00:18]}  Qb7 {[%clk 0:01:50]} 27. Ba3 {[%clk 0:00:13]}  Rxc1 {[%clk 0:01:39]} 28. Qxc1 {[%clk 0:00:13]}  Qa6 {[%clk 0:01:39]} 29. g3 {[%clk 0:00:09]}  Qe2 {[%clk 0:01:35]} 30. Qb2 {[%clk 0:00:02]}  Nd2 {[%clk 0:01:29]} 0-1


[Site "https://www.chess.com"]

[Event "Titled Tuesday Blitz March 22 Early 2022"]
[White "Vogel, Roven"]
[Black "Deac, Bogdan-Daniel"]
[WhiteFideId "12908088"]
[BlackFideId "1226380"]
[WhiteElo "2516"]
[BlackElo "2646"]
[Result "1-0"]
[Round "02"]
[TimeControl "180+1"]
[Date "2022.03.22"]
[WhiteClock "0:01:18"]
[BlackClock "0:00:02"]

1. d4 {[%clk 0:02:51]}  d5 {[%clk 0:02:59]} 2. c4 {[%clk 0:02:51]}  e6 {[%clk 0:02:59]} 3. Nc3 {[%clk 0:02:51]}  a6 {[%clk 0:02:59]} 4. cxd5 {[%clk 0:02:52]}  exd5 {[%clk 0:03:00]} 5. Nf3 {[%clk 0:02:51]}  Nf6 {[%clk 0:02:59]} 6. Bg5 {[%clk 0:02:52]}  Be6 {[%clk 0:02:59]} 7. e3 {[%clk 0:02:52]}  Nbd7 {[%clk 0:02:59]} 8. Bd3 {[%clk 0:02:52]}  Bd6 {[%clk 0:03:00]} 9. h3 {[%clk 0:02:52]}  c6 {[%clk 0:02:56]} 10. Bf4 {[%clk 0:02:52]}  Qb8 {[%clk 0:02:55]} 11. Qd2 {[%clk 0:02:52]}  O-O {[%clk 0:02:53]} 12. O-O {[%clk 0:02:52]}  Re8 {[%clk 0:02:52]} 13. Ng5 {[%clk 0:02:46]}  Bxf4 {[%clk 0:02:38]} 14. exf4 {[%clk 0:02:45]}  Nf8 {[%clk 0:02:38]} 15. f5 {[%clk 0:02:32]}  Bd7 {[%clk 0:02:37]} 16. Rfe1 {[%clk 0:02:32]}  Qd6 {[%clk 0:02:32]} 17. Na4 {[%clk 0:02:32]}  Rxe1+ {[%clk 0:02:24]} 18. Rxe1 {[%clk 0:02:30]}  Re8 {[%clk 0:02:25]} 19. Rxe8 {[%clk 0:02:26]}  Nxe8 {[%clk 0:02:25]} 20. Nf3 {[%clk 0:02:18]}  f6 {[%clk 0:02:19]} 21. a3 {[%clk 0:02:18]}  Qe7 {[%clk 0:02:12]} 22. Nc5 {[%clk 0:02:15]}  Bc8 {[%clk 0:02:10]} 23. g4 {[%clk 0:02:14]}  Nd6 {[%clk 0:02:06]} 24. Qf4 {[%clk 0:02:13]}  a5 {[%clk 0:01:33]} 25. Kg2 {[%clk 0:02:10]}  Nd7 {[%clk 0:01:24]} 26. b4 {[%clk 0:02:00]}  axb4 {[%clk 0:01:22]} 27. axb4 {[%clk 0:02:01]}  Nf8 {[%clk 0:01:17]} 28. Qe3 {[%clk 0:01:51]}  Kf7 {[%clk 0:00:38]} 29. Nd2 {[%clk 0:01:48]}  g6 {[%clk 0:00:16]} 30. fxg6+ {[%clk 0:01:46]}  hxg6 {[%clk 0:00:16]} 31. Qh6 {[%clk 0:01:43]}  b6 {[%clk 0:00:14]} 32. Na4 {[%clk 0:01:39]}  b5 {[%clk 0:00:04]} 33. Nc5 {[%clk 0:01:31]}  f5 {[%clk 0:00:04]} 34. Nf3 {[%clk 0:01:30]}  fxg4 {[%clk 0:00:03]} 35. Ne5+ {[%clk 0:01:30]}  Kg8 {[%clk 0:00:03]} 36. hxg4 {[%clk 0:01:31]}  Qf6 {[%clk 0:00:02]} 37. f3 {[%clk 0:01:24]}  Qg7 {[%clk 0:00:02]} 38. Qxg7+ {[%clk 0:01:19]}  Kxg7 {[%clk 0:00:03]} 39. Nxc6 {[%clk 0:01:20]}  g5 {[%clk 0:00:02]} 40. Na7 {[%clk 0:01:18]}  Be6 {[%clk 0:00:02]} 41. Nxb5 {[%clk 0:01:18]}  Nxb5 {[%clk 0:00:02]} 42. Bxb5 {[%clk 0:01:19]}  Bf7 {[%clk 0:00:02]} 43. Bc6 {[%clk 0:01:18]} 1-0


[Site "https://www.chess.com"]